bitfinex/quotes_BTCUSD_20250812
["timestamp","ask_amount","ask_price","bid_price","bid_amount"]
[1755007696407,0.1676727,119280.0,119270.0,0.17606999]
[1755007696648,0.1727627,119280.0,119270.0,0.31338999]
[1755007696879,0.1727627,119280.0,119270.0,0.31540999]
[1755007697093,0.20854574,119280.0,119270.0,0.13732]
[1755007697560,0.77557139,119280.0,119270.0,0.13732]
[1755007698207,0.20854574,119280.0,119270.0,0.13732]
[1755007698907,0.20954574,119280.0,119270.0,0.13732]
[1755007699135,0.77657139,119280.0,119270.0,0.13732]
[1755007699349,0.20954574,119280.0,119270.0,0.13732]
[1755007699558,0.16768676,119270.0,119260.0,0.17622622]
[1755007699772,0.25225119,119270.0,119260.0,1.01556622]
[1755007699991,0.25526119,119270.0,119260.0,1.01354622]
[1755007700198,0.25520251,119270.0,119260.0,0.83746036]
[1755007700623,0.25520251,119270.0,119260.0,0.30516118]
[1755007700839,0.16970808,119270.0,119260.0,0.30718118]
[1755007701055,0.17271808,119270.0,119260.0,0.13746036]
[1755007701295,0.73974373,119270.0,119260.0,0.13846036]
[1755007701728,0.17271808,119270.0,119260.0,0.13746036]
[1755007702151,0.17371808,119270.0,119260.0,0.13746036]
[1755007703003,0.23180397,119270.0,119260.0,0.13746036]
[1755007703649,0.23180397,119270.0,119260.0,0.30516118]
[1755007703874,0.17571808,119270.0,119260.0,0.13746036]
[1755007704113,0.17571808,119270.0,119260.0,0.30516118]
[1755007704335,0.17571808,119270.0,119260.0,0.13746036]
[1755007704549,0.17571808,119270.0,119260.0,0.30516118]
[1755007704770,0.25820251,119270.0,119260.0,0.13746036]
[1755007705218,0.17571808,119270.0,119260.0,0.13746036]
[1755007705432,0.17571808,119270.0,119260.0,0.00014036]
[1755007705433,0.980156,119270.0,119260.0,0.00014036]
[1755007706334,0.978156,119270.0,119260.0,0.00014036]
[1755007706541,0.977156,119270.0,119260.0,0.00014036]
[1755007706747,0.979156,119270.0,119260.0,0.00014036]
[1755007706947,1.06164043,119270.0,119260.0,0.00014036]
[1755007707366,1.05964043,119270.0,119260.0,0.00014036]
[1755007707823,0.49461478,119270.0,119260.0,0.00014036]
[1755007708034,1.06164043,119270.0,119260.0,0.00014036]
[1755007708473,1.06364043,119270.0,119260.0,0.00014036]
[1755007708926,1.06164043,119270.0,119260.0,0.00014036]
[1755007709334,1.06464043,119270.0,119260.0,0.00014036]
[1755007710650,0.49761478,119270.0,119260.0,0.00014036]
[1755007710865,1.06464043,119270.0,119260.0,0.00014036]
[1755007711504,0.17262808,119270.0,119260.0,0.00216036]
[1755007711715,0.74474373,119270.0,119260.0,0.00014036]
[1755007711925,0.82746698,119270.0,119260.0,0.00014036]
[1755007712132,0.844916,119270.0,119260.0,0.00014036]
[1755007712531,0.841916,119270.0,119260.0,0.00014036]
[1755007712750,0.92240043,119270.0,119260.0,0.00014036]
[1755007712972,0.92440043,119270.0,119260.0,0.00014036]
[1755007713209,0.92640043,119270.0,119260.0,0.00014036]
[1755007714023,0.35937478,119270.0,119260.0,0.00014036]
[1755007714333,0.92640043,119270.0,119260.0,0.00014036]
[1755007714549,0.27388035,119270.0,119260.0,0.00216036]
[1755007714773,0.27388035,119270.0,119260.0,0.00528036]
[1755007714988,0.840906,119270.0,119260.0,0.00528036]
[1755007715435,0.840906,119270.0,119260.0,0.00014036]
[1755007715865,0.844076,119270.0,119260.0,0.00014036]
[1755007716072,0.35953478,119270.0,119260.0,0.00014036]
[1755007716287,1.06376043,119270.0,119260.0,0.00014036]
[1755007718580,0.49673478,119270.0,119260.0,0.00014036]
[1755007718797,1.06376043,119270.0,119260.0,0.00014036]
[1755007719803,0.49673478,119270.0,119260.0,0.00014036]
[1755007720006,1.06376043,119270.0,119260.0,0.00014036]
[1755007720806,1.06372043,119270.0,119260.0,0.00014036]
[1755007721680,1.06055043,119270.0,119260.0,0.00215036]
[1755007721868,0.27388035,119270.0,119260.0,0.00215036]
[1755007722114,0.975946,119270.0,119260.0,0.00510036]
[1755007722348,0.40892035,119270.0,119260.0,0.00510036]
[1755007722591,0.838826,119270.0,119260.0,0.00510036]
[1755007722827,0.1890771,119270.0,119260.0,0.00510036]
[1755007723043,0.25411251,119270.0,119260.0,0.30992118]
[1755007723269,0.17162808,119270.0,119260.0,0.30992118]
[1755007723485,0.004,119270.0,119260.0,0.30992118]
[1755007723696,0.17168676,119270.0,119260.0,0.30992118]
[1755007723877,0.17168676,119270.0,119260.0,0.14222036]
[1755007724597,0.75819143,119270.0,119260.0,0.00215036]
[1755007724813,1.05086322,119270.0,119260.0,0.00014036]
[1755007726151,1.08389088,119270.0,119260.0,0.00014036]
[1755007726388,1.08389091,119270.0,119260.0,0.00014036]
[1755007726875,0.16775687,119230.0,119220.0,0.00295]
[1755007727084,0.16775687,119230.0,119220.0,0.00496]
[1755007727296,0.2158521,119230.0,119220.0,0.00496]
[1755007727490,0.77208186,119230.0,119220.0,0.00201]
[1755007727711,0.2178821,119230.0,119220.0,0.00201]
[1755007728159,0.21802902,119230.0,119220.0,0.00201]
[1755007728382,0.37255804,119230.0,119220.0,0.00201]
[1755007728640,0.37355804,119230.0,119220.0,0.00201]
[1755007728890,0.37355804,119230.0,119190.0,0.30782931]
[1755007728891,0.16778523,119200.0,119190.0,0.30782931]
[1755007729137,0.16778523,119200.0,119190.0,0.84204]
[1755007729593,0.16778523,119200.0,119190.0,1.00983931]
[1755007729804,0.16778523,119200.0,119190.0,0.84204]
[1755007730007,0.16778523,119200.0,119190.0,1.00983931]
[1755007730244,0.16778523,119200.0,119190.0,0.14204]
[1755007730478,0.16778523,119200.0,119190.0,0.30983931]
[1755007730953,0.20134087,119200.0,119190.0,0.00696]
[1755007731173,0.20134087,119200.0,119190.0,0.14404]
[1755007731386,0.20337087,119200.0,119190.0,0.14109]
[1755007731593,0.20134087,119200.0,119190.0,0.13909]
[1755007731829,0.20134087,119200.0,119190.0,0.14604]
[1755007732050,0.20337087,119200.0,119190.0,0.00701]
[1755007732733,0.30671314,119200.0,119190.0,0.007]
[1755007733620,0.30671314,119200.0,119190.0,0.001]
[1755007734317,0.16781339,119180.0,119170.0,0.30781747]
[1755007734539,0.20137591,119180.0,119170.0,0.142]
[1755007734970,0.20137591,119180.0,119170.0,0.00496]
[1755007735431,0.77505469,119180.0,119170.0,0.00201]
[1755007735652,0.36639246,119180.0,119170.0,0.001]
[1755007735883,0.45228571,119180.0,119170.0,0.001]
[1755007736105,0.44076499,119180.0,119170.0,0.00201]
[1755007736340,0.30372499,119180.0,119170.0,0.00201]
[1755007736570,0.30372499,119180.0,119160.0,0.30783078]
[1755007736571,0.16782747,119170.0,119160.0,0.00295]
[1755007736784,0.21498272,119170.0,119160.0,0.70496]
[1755007737036,0.21498272,119170.0,119160.0,0.00496]
[1755007737908,0.21498272,119170.0,119160.0,0.17280155]
[1755007738347,0.16782747,119170.0,119160.0,0.17280155]
[1755007739210,0.16882747,119170.0,119160.0,0.17280155]
[1755007740352,0.16784155,119160.0,119150.0,0.13704]
[1755007740569,0.16987155,119160.0,119150.0,0.13905]
[1755007740785,0.16785564,119150.0,119140.0,0.30781973]
[1755007741009,0.16784155,119160.0,119150.0,0.00201]
[1755007741226,0.21636859,119160.0,119150.0,0.00201]
[1755007741445,0.21636859,119160.0,119150.0,0.00496]
[1755007741663,0.21636859,119160.0,119150.0,0.00596]
[1755007742322,0.22156859,119160.0,119150.0,0.001]
[1755007742770,0.16786827,119150.0,119140.0,0.16786973]
[1755007743002,0.22576066,119160.0,119140.0,0.17282973]
[1755007743185,0.16785564,119150.0,119140.0,0.16987973]
[1755007743441,0.16785564,119150.0,119140.0,0.17282973]
[1755007743629,0.36276066,119160.0,119150.0,0.001]
[1755007743881,0.36479066,119160.0,119150.0,0.00201]
[1755007744109,0.31626362,119160.0,119150.0,0.00201]
[1755007744327,0.16785564,119150.0,119140.0,0.17081973]
[1755007744614,0.16785564,119150.0,119140.0,0.17282973]
[1755007744833,0.31423362,119160.0,119140.0,0.17282973]
[1755007745055,0.16785564,119150.0,119140.0,0.17282973]
[1755007745279,0.20236457,119150.0,119140.0,0.17282973]
[1755007745751,0.20236457,119150.0,119140.0,0.00496]
[1755007745752,0.20336457,119150.0,119140.0,0.00496]
[1755007745981,0.20540457,119150.0,119140.0,0.00201]
[1755007746220,0.16786973,119140.0,119130.0,0.14011]
[1755007746454,0.20551816,119140.0,119130.0,0.84209]
[1755007746672,0.20755816,119140.0,119130.0,0.13704]
[1755007746893,0.20755816,119140.0,119130.0,0.13902]
[1755007747129,0.20551816,119140.0,119130.0,0.14209]
[1755007747350,0.20551816,119140.0,119130.0,0.17293382]
[1755007747531,0.20566489,119140.0,119130.0,0.17393382]
[1755007747978,0.16801646,119140.0,119130.0,0.17493382]
[1755007748207,0.16801646,119140.0,119130.0,0.00705]
[1755007748456,0.16801646,119140.0,119130.0,0.002]
[1755007748457,0.19071548,119140.0,119130.0,0.002]
[1755007748682,0.96463849,119140.0,119130.0,0.002]
[1755007749177,0.96463849,119140.0,119130.0,0.001]
[1755007749406,1.05537885,119140.0,119130.0,0.001]
[1755007749655,1.05637885,119140.0,119130.0,0.001]
[1755007749881,0.16789791,119120.0,119110.0,0.1374]
[1755007750103,0.16789791,119120.0,119110.0,0.31036201]
[1755007750328,0.25061941,119130.0,119110.0,0.31036201]
[1755007750567,0.22203903,119130.0,119120.0,0.16789791]
[1755007750795,0.22203903,119130.0,119120.0,0.17294791]
[1755007751463,0.22202669,119130.0,119120.0,0.17294791]
[1755007751926,0.22302669,119130.0,119120.0,0.17294791]
[1755007752160,0.05514287,119130.0,119120.0,0.17294791]
[1755007752442,0.16788382,119130.0,119120.0,0.17294791]
[1755007752892,0.17092382,119130.0,119120.0,0.00198]
[1755007753136,0.16789791,119120.0,119110.0,0.1374]
[1755007753353,0.16993791,119120.0,119110.0,0.1374]
[1755007753595,0.16993791,119120.0,119110.0,0.30729201]
[1755007753816,0.21037341,119120.0,119110.0,0.30729201]
[1755007754032,0.16789791,119120.0,119110.0,0.13938]
[1755007754248,0.16789791,119120.0,119110.0,0.30729201]
[1755007754483,0.25060707,119130.0,119110.0,0.31136201]
[1755007754702,0.16788382,119130.0,119120.0,0.17096791]
[1755007754938,0.2023132,119130.0,119120.0,0.17294791]
[1755007755151,0.17640994,119140.0,119130.0,0.16788382]
[1755007755372,0.00014673,119140.0,119130.0,0.30989382]
[1755007755593,0.16801646,119140.0,119130.0,0.30989382]
[1755007756748,0.00014673,119140.0,119130.0,0.30989382]
[1755007756967,0.00214673,119140.0,119130.0,0.30989382]
[1755007757214,0.00214673,119140.0,119130.0,0.87227573]
[1755007757447,0.02163575,119140.0,119130.0,0.00198]
[1755007757669,0.2152157,119140.0,119130.0,0.13894]
[1755007757885,0.19572668,119140.0,119130.0,0.14201]
[1755007758101,0.19876668,119140.0,119130.0,0.13894]
[1755007758534,0.19676668,119140.0,119130.0,0.13894]
[1755007758750,0.19997668,119140.0,119130.0,0.13696]
[1755007758959,0.19676668,119140.0,119130.0,0.13696]
[1755007759183,0.19676668,119140.0,119130.0,0.13894]
[1755007759562,0.17105646,119140.0,119130.0,0.13894]
[1755007760176,0.16901646,119140.0,119130.0,0.30989382]
[1755007760395,0.16901646,119140.0,119130.0,0.14201]
[1755007760614,0.17101646,119140.0,119130.0,0.14201]
[1755007761308,0.00314673,119140.0,119130.0,0.86409358]
[1755007762448,0.17001646,119140.0,119130.0,0.14201]
[1755007762660,0.20380372,119140.0,119130.0,0.30989382]
[1755007762874,0.20380372,119140.0,119130.0,0.14201]
[1755007763089,0.20705372,119140.0,119130.0,0.13696]
[1755007763526,0.30518599,119140.0,119130.0,0.13696]
[1755007763747,0.32322134,119140.0,119130.0,0.13696]
[1755007763971,0.8774211,119140.0,119130.0,0.13796]
[1755007764196,0.8774211,119140.0,119130.0,0.13792]
[1755007764420,0.95312788,119140.0,119130.0,0.001]
[1755007764637,0.18533284,119130.0,119120.0,0.13688]
[1755007764879,0.27126609,119130.0,119120.0,0.13688]
[1755007765143,0.37178587,119130.0,119120.0,0.13688]
[1755007765356,0.28930144,119130.0,119120.0,0.13688]
[1755007765571,0.18534693,119120.0,119110.0,0.0004]
[1755007765785,0.26807018,119120.0,119110.0,0.13728]
[1755007766021,0.28931553,119120.0,119110.0,0.13728]
[1755007766521,0.84555529,119120.0,119110.0,0.13728]
[1755007767028,1.00374678,119120.0,119110.0,0.0004]
[1755007767451,1.03741568,119120.0,119110.0,0.0014]
[1755007767931,0.48321592,119120.0,119110.0,0.0014]
[1755007768148,0.48521592,119120.0,119110.0,0.0004]
[1755007768369,0.48621592,119120.0,119110.0,0.0004]
[1755007768588,0.48621502,119120.0,119110.0,0.0004]
[1755007768810,0.44605312,119120.0,119110.0,0.0004]
[1755007769020,0.42083612,119120.0,119110.0,0.0004]
[1755007769575,0.42483612,119120.0,119110.0,0.0004]
[1755007770206,0.97869843,119120.0,119110.0,0.0004]
[1755007770418,1.00403647,119120.0,119110.0,0.0004]
[1755007770635,1.00603647,119120.0,119110.0,0.0004]
[1755007771083,0.97403647,119120.0,119110.0,0.0004]
[1755007771296,0.97803647,119120.0,119110.0,0.0004]
[1755007771550,0.97216477,119120.0,119110.0,0.0004]
[1755007771782,1.17161532,119120.0,119110.0,0.0004]
[1755007772000,1.20153817,119120.0,119110.0,0.0004]
[1755007772220,1.20153861,119120.0,119110.0,0.0004]
[1755007772452,1.20153861,119120.0,119110.0,0.00044]
[1755007772899,1.22675661,119120.0,119110.0,0.00044]
[1755007773357,1.08987661,119120.0,119110.0,0.00044]
[1755007773573,1.09287661,119120.0,119110.0,0.00044]
[1755007773805,1.07722624,119120.0,119110.0,0.00044]
[1755007774030,1.09287503,119120.0,119110.0,0.00044]
[1755007775140,1.53887503,119120.0,119110.0,0.00044]
[1755007775426,1.51640869,119120.0,119110.0,0.00044]
[1755007775656,0.16798252,119060.0,119030.0,0.92376041]
[1755007775892,0.16798252,119060.0,119050.0,0.83881]
[1755007776116,0.16798252,119060.0,119050.0,0.84194]
[1755007776352,0.16798252,119060.0,119050.0,0.14194]
[1755007776587,0.16798252,119060.0,119050.0,0.30993664]
[1755007776824,0.17636684,119070.0,119060.0,0.16798252]
[1755007777039,0.17651344,119070.0,119060.0,0.16995252]
[1755007777245,0.16811502,119070.0,119060.0,0.17308252]
[1755007777959,0.0001466,119070.0,119060.0,0.17308252]
[1755007778206,0.16811502,119070.0,119060.0,0.72531228]
[1755007778454,0.16811502,119070.0,119060.0,0.17111252]
[1755007778886,0.16811502,119070.0,119060.0,0.00313]
[1755007779107,0.20256314,119070.0,119060.0,0.00313]
[1755007779793,0.20256314,119070.0,119060.0,0.17111252]
[1755007780017,0.20256314,119070.0,119060.0,0.00313]
[1755007780234,0.20256314,119070.0,119060.0,0.17111252]
[1755007780710,0.0001466,119070.0,119060.0,0.72531228]
[1755007780936,0.0001466,119070.0,119060.0,0.80803553]
[1755007781375,0.0001466,119070.0,119060.0,0.87803553]
[1755007782042,0.0001466,119070.0,119060.0,0.88003553]
[1755007782917,0.0001466,119070.0,119060.0,1.60525053]
[1755007783099,0.0001466,119070.0,119060.0,1.60825053]
[1755007783343,0.0001466,119070.0,119060.0,1.60325053]
[1755007783776,0.0001466,119070.0,119060.0,1.58503553]
[1755007784018,0.0001466,119070.0,119060.0,1.58300553]
[1755007784298,0.0001466,119070.0,119060.0,1.58000553]
[1755007784524,0.0001466,119070.0,119060.0,1.58900553]
[1755007784741,0.0001466,119070.0,119060.0,2.84175753]
[1755007784956,1e-08,119070.0,119060.0,2.84175753]
[1755007785172,1e-08,119070.0,119060.0,2.80085153]
[1755007787421,0.0676104,119110.0,119100.0,0.16792611]
[1755007787620,0.06775692,119110.0,119100.0,0.30982611]
[1755007787848,0.06986692,119110.0,119100.0,0.30669611]
[1755007788266,0.06775692,119110.0,119100.0,0.30669611]
[1755007788486,0.06775692,119110.0,119100.0,0.30982611]
[1755007788675,0.06986692,119110.0,119100.0,0.30669611]
[1755007789894,0.06875692,119110.0,119100.0,0.30669611]
[1755007790107,0.00114652,119110.0,119100.0,0.30982611]
[1755007790328,0.00114652,119110.0,119100.0,0.86402587]
[1755007790612,0.00014652,119110.0,119100.0,0.94674912]
[1755007790823,0.00114652,119110.0,119100.0,0.94674912]
[1755007791246,0.00014652,119110.0,119100.0,0.94674912]
[1755007791464,0.00014652,119110.0,119100.0,0.94774912]
[1755007791682,0.00014652,119110.0,119100.0,0.97239137]
[1755007792488,0.00014652,119110.0,119100.0,1.67239137]
[1755007792917,0.00014652,119110.0,119100.0,1.67139137]
[1755007793355,0.00014652,119110.0,119100.0,1.67539137]
[1755007793562,0.00014652,119110.0,119100.0,1.67839137]
[1755007797435,0.00014652,119110.0,119100.0,1.67827137]
[1755007798067,0.00014652,119110.0,119100.0,1.12407161]
[1755007798282,0.00014652,119110.0,119100.0,1.67827137]
[1755007799134,0.00014652,119110.0,119100.0,0.97827137]
[1755007799368,0.00014652,119110.0,119100.0,1.53247113]
[1755007799578,0.00014652,119110.0,119100.0,0.42407161]
[1755007799794,0.00014652,119110.0,119100.0,0.97827137]
[1755007801635,0.00225652,119110.0,119100.0,0.42094161]
[1755007802130,0.00225652,119110.0,119100.0,1.67514137]
[1755007802801,0.00014652,119110.0,119100.0,1.67827137]
[1755007805508,0.00525652,119110.0,119100.0,1.11897161]
[1755007805736,0.17316853,119110.0,119100.0,1.03624836]
[1755007806007,0.00525652,119110.0,119100.0,1.03624836]
[1755007806233,0.17316853,119110.0,119100.0,0.33624836]
[1755007806456,0.20727528,119110.0,119100.0,0.31160611]
[1755007806669,0.17316853,119110.0,119100.0,0.31160611]
[1755007807322,0.17316853,119110.0,119100.0,0.14368]
[1755007807541,0.17316853,119110.0,119100.0,0.007]
[1755007807989,0.24077893,119110.0,119100.0,0.1436]
[1755007808198,0.32326336,119110.0,119100.0,0.1436]
[1755007808384,0.32326336,119110.0,119100.0,0.1406]
[1755007809080,0.42343563,119110.0,119100.0,0.1406]
[1755007809301,0.45292563,119110.0,119100.0,0.1406]
[1755007809528,1.00712539,119110.0,119100.0,0.1406]
[1755007809799,1.00712539,119110.0,119100.0,0.1366]
[1755007810236,1.00712539,119110.0,119100.0,0.1376]
[1755007810237,0.93951499,119110.0,119100.0,0.1376]
[1755007810448,0.94051499,119110.0,119100.0,0.1376]
[1755007811771,0.38631523,119110.0,119100.0,0.1376]
[1755007812207,0.3038308,119110.0,119100.0,0.1376]
[1755007812657,0.2743408,119110.0,119100.0,0.1376]
[1755007813315,0.17416853,119110.0,119100.0,0.1376]
[1755007813965,0.17416853,119110.0,119100.0,0.30552611]
[1755007814404,0.17416853,119110.0,119100.0,0.1376]
[1755007814619,0.25665296,119110.0,119100.0,0.1376]
[1755007815538,0.25665296,119110.0,119100.0,0.30552611]
[1755007815754,0.17416853,119110.0,119100.0,0.1376]
[1755007818185,0.17416853,119110.0,119100.0,0.001]
[1755007818186,0.2743408,119110.0,119100.0,0.001]
[1755007818406,0.82854056,119110.0,119100.0,0.001]
[1755007819745,0.2743408,119110.0,119100.0,0.001]
[1755007819965,0.82854056,119110.0,119100.0,0.001]
[1755007820190,0.82809774,119110.0,119100.0,0.001]
[1755007820407,0.91058217,119110.0,119100.0,0.001]
[1755007820669,0.94007217,119110.0,119100.0,0.001]
[1755007820884,1.15201217,119110.0,119100.0,0.001]
[1755007821111,0.59781241,119110.0,119100.0,0.001]
[1755007821383,1.15201217,119110.0,119100.0,0.001]
[1755007821829,1.15101217,119110.0,119100.0,0.001]
[1755007822054,1.15401217,119110.0,119100.0,0.001]
[1755007822271,1.17922164,119110.0,119100.0,0.001]
[1755007822505,0.16796842,119070.0,119060.0,0.13652]
[1755007822725,0.17005842,119070.0,119060.0,0.13848]
[1755007823166,0.16796842,119070.0,119060.0,0.14153]
[1755007823899,0.2037007,119070.0,119060.0,0.13948]
[1755007824336,0.2037007,119070.0,119060.0,0.14048]
[1755007825593,0.1701072,119070.0,119060.0,0.14048]
[1755007825803,4.878e-05,119070.0,119060.0,0.86571228]
[1755007826236,0.1680172,119070.0,119060.0,0.31151252]
[1755007826678,0.1680172,119070.0,119060.0,0.14353]
[1755007827124,0.1701072,119070.0,119060.0,0.14048]
[1755007827331,0.20391457,119070.0,119060.0,0.13852]
[1755007827550,0.20693457,119070.0,119060.0,0.13852]
[1755007828844,0.20391457,119070.0,119060.0,0.14048]
[1755007829302,0.1680172,119070.0,119060.0,0.14353]
[1755007831689,0.1701072,119070.0,119060.0,0.14048]
[1755007831902,0.1731272,119070.0,119060.0,0.13852]
[1755007833000,0.1701072,119070.0,119060.0,0.14048]
[1755007833853,0.1680172,119070.0,119060.0,0.14353]
[1755007834782,0.17953634,119070.0,119060.0,0.31151252]
[1755007834998,0.17953634,119070.0,119060.0,0.14353]
[1755007835452,0.1680172,119070.0,119060.0,0.14353]
[1755007835731,4.878e-05,119070.0,119060.0,0.86571228]
[1755007835977,4.878e-05,119070.0,119060.0,0.31151252]
[1755007842416,0.1680172,119070.0,119060.0,0.31151252]
[1755007843492,0.1730872,119070.0,119060.0,0.002]
[1755007843697,0.25557163,119070.0,119060.0,0.13844]
[1755007846764,0.25557163,119070.0,119060.0,0.002]
[1755007846765,0.90994366,119070.0,119060.0,0.002]
[1755007846979,1.11395406,119070.0,119060.0,0.002]
[1755007847215,1.07510366,119070.0,119060.0,0.002]
[1755007848715,1.080981,119070.0,119060.0,0.002]
[1755007849575,0.3845039,119070.0,119060.0,0.002]
[1755007850026,0.3557439,119070.0,119060.0,0.002]
[1755007850451,0.4921439,119070.0,119060.0,0.002]
[1755007850885,0.49802166,119070.0,119060.0,0.002]
[1755007851143,0.3557439,119070.0,119060.0,0.002]
[1755007851362,0.3526639,119070.0,119060.0,0.00405]
[1755007851790,0.3526639,119070.0,119060.0,0.14045]
[1755007852008,0.3557439,119070.0,119060.0,0.1384]
[1755007852673,0.3557439,119070.0,119060.0,0.002]
[1755007853821,0.90994366,119070.0,119060.0,0.002]
[1755007854474,0.3557439,119070.0,119060.0,0.002]
[1755007855541,0.90994366,119070.0,119060.0,0.002]
[1755007855969,0.3557439,119070.0,119060.0,0.002]
[1755007857074,0.4921039,119070.0,119060.0,0.002]
[1755007858609,1.04630366,119070.0,119060.0,0.002]
[1755007861249,0.3557439,119070.0,119060.0,0.002]
[1755007861468,0.3526639,119070.0,119060.0,0.00405]
[1755007861679,0.3557439,119070.0,119060.0,0.002]
[1755007862541,0.90994366,119070.0,119060.0,0.002]
[1755007865545,1.04626366,119070.0,119060.0,0.002]
[1755007865763,0.4920639,119070.0,119060.0,0.002]
[1755007866868,1.06138323,119070.0,119060.0,0.002]
[1755007869514,1.15399363,119070.0,119060.0,0.002]
[1755007869743,1.15399363,119070.0,119010.0,0.00308]
[1755007869744,0.16803898,119020.0,119010.0,0.00308]
[1755007869986,0.16806564,119010.0,119000.0,0.00308]
[1755007870207,0.73738497,119010.0,119000.0,0.00513]
[1755007870435,0.97593724,119010.0,118990.0,0.0004]
[1755007870664,1.40687815,119000.0,118990.0,0.0004]
[1755007870883,1.41220815,119000.0,118990.0,0.0004]
[1755007871312,0.84288882,119000.0,118990.0,0.0008902]
[1755007871533,0.97916882,119000.0,118990.0,0.0008902]
[1755007871972,0.41837844,119000.0,118990.0,0.0008902]
[1755007872175,0.98769777,119000.0,118990.0,0.0008902]
[1755007872403,0.28209844,119000.0,118990.0,0.0008902]
[1755007872634,0.27676844,119000.0,118990.0,0.0070202]
[1755007872985,0.27676844,119000.0,118990.0,0.17510155]
[1755007872986,0.16806722,119000.0,118990.0,0.17510155]
[1755007873065,0.30434564,119010.0,118990.0,0.17510155]
[1755007873066,0.16806564,119010.0,118990.0,0.17510155]
[1755007873286,0.26823949,119000.0,118990.0,0.0018902]
[1755007873503,0.82798935,119000.0,118990.0,0.0018902]
[1755007873956,0.26823949,119000.0,118990.0,0.0018902]
[1755007874418,0.26823949,119000.0,118990.0,0.0049702]
[1755007875535,0.26823949,119000.0,118990.0,0.0018902]
[1755007875748,0.35395392,119000.0,118990.0,0.0018902]
[1755007876187,0.91047378,119000.0,118990.0,0.0018902]
[1755007876421,0.91257378,119000.0,118990.0,0.0018902]
[1755007877739,0.35605392,119000.0,118990.0,0.0018902]
[1755007878600,0.35072392,119000.0,118990.0,0.0039402]
[1755007878819,0.35072392,119000.0,118990.0,0.0070202]
[1755007879253,0.26823949,119000.0,118990.0,0.0070202]
[1755007880402,0.82685935,119000.0,118990.0,0.0018902]
[1755007880606,0.27356949,119000.0,118990.0,0.0018902]
[1755007881100,0.40661949,119000.0,118990.0,0.0039402]
[1755007881537,0.40661949,119000.0,118990.0,0.0018902]
[1755007881538,0.40984949,119000.0,118990.0,0.0018902]
[1755007881756,1.04885378,119000.0,118990.0,0.0018902]
[1755007882529,0.49233392,119000.0,118990.0,0.0018902]
[1755007882798,1.04885378,119000.0,118990.0,0.0018902]
[1755007883964,0.35605392,119000.0,118990.0,0.0018902]
[1755007884187,0.48910392,119000.0,118990.0,0.0018902]
[1755007884631,0.48910392,119000.0,118990.0,0.0039402]
[1755007885495,0.48700392,119000.0,118990.0,0.0070202]
[1755007885945,0.08248443,119000.0,118990.0,0.72957141]
[1755007886158,0.62244092,119020.0,119010.0,0.1680531]
[1755007886363,0.446,119020.0,119010.0,0.3074531]
[1755007886804,0.25629859,119050.0,119030.0,0.16802486]
[1755007886805,0.176409,119050.0,119030.0,0.16802486]
[1755007887022,0.176409,119050.0,119040.0,0.17109075]
[1755007887288,0.176409,119050.0,119040.0,0.00308]
[1755007887947,0.16799664,119050.0,119040.0,0.17108772]
[1755007888167,0.1680454,119050.0,119040.0,0.17108772]
[1755007888373,4.876e-05,119050.0,119040.0,0.17208772]
[1755007888601,0.1680454,119050.0,119040.0,0.17208772]
[1755007889956,4.876e-05,119050.0,119040.0,0.17208772]
[1755007890204,0.1680454,119050.0,119040.0,0.17408772]
[1755007890707,4.876e-05,119050.0,119040.0,0.73060758]
[1755007890921,4.876e-05,119050.0,119040.0,0.81233083]
[1755007891323,4.876e-05,119050.0,119040.0,0.81333083]
[1755007892217,0.1680454,119050.0,119040.0,0.17408772]
[1755007892436,4.876e-05,119050.0,119040.0,0.17408772]
[1755007892871,4.876e-05,119050.0,119040.0,0.73060758]
[1755007893357,0.1680454,119050.0,119040.0,0.73060758]
[1755007893653,4.876e-05,119050.0,119040.0,0.17408772]
[1755007894800,0.1680454,119050.0,119040.0,0.17408772]
[1755007895233,0.1680454,119050.0,119040.0,0.00608]
[1755007895901,0.1680454,119050.0,119040.0,0.073]
[1755007896137,0.20164824,119050.0,119040.0,0.073]
[1755007896360,0.20164824,119050.0,119040.0,0.20924]
[1755007897062,0.20164824,119050.0,119040.0,0.20724]
[1755007897458,0.20164824,119050.0,119040.0,0.20624]
[1755007898126,0.20164824,119050.0,119040.0,0.20946]
[1755007899718,0.20164824,119050.0,119040.0,0.20624]
[1755007900395,0.20164824,119050.0,119040.0,0.07]
[1755007900617,0.20164824,119050.0,119040.0,0.20624]
[1755007901310,0.20376824,119050.0,119040.0,0.20624]
[1755007901491,0.20376824,119050.0,119040.0,0.20827]
[1755007902338,0.20376824,119050.0,119040.0,0.20831]
[1755007902557,0.20164824,119050.0,119040.0,0.37632075]
[1755007902757,0.1680454,119050.0,119040.0,0.37954075]
[1755007902968,4.876e-05,119050.0,119040.0,0.93606061]
[1755007903582,4.876e-05,119050.0,119040.0,0.37954075]
[1755007903818,4.876e-05,119050.0,119040.0,0.93606061]
[1755007904276,4.876e-05,119050.0,119040.0,0.38154075]
[1755007904491,4.876e-05,119050.0,119040.0,0.93806061]
[1755007904916,4.876e-05,119050.0,119040.0,0.94006061]
[1755007905338,4.876e-05,119050.0,119040.0,1.02278386]
[1755007907581,4.876e-05,119050.0,119040.0,1.40943686]
[1755007907789,4.876e-05,119050.0,119040.0,1.41143686]
[1755007908219,4.876e-05,119050.0,119040.0,1.97195672]
[1755007908400,4.876e-05,119050.0,119040.0,2.67195672]
[1755007909484,4.876e-05,119050.0,119040.0,2.11543686]
[1755007909692,4.876e-05,119050.0,119040.0,1.41543686]
[1755007911066,4.876e-05,119050.0,119040.0,0.858917]
[1755007911301,4.876e-05,119050.0,119040.0,1.41543686]
[1755007911521,4.876e-05,119050.0,119040.0,0.858917]
[1755007911730,4.876e-05,119050.0,119040.0,1.41543686]
[1755007912782,4.876e-05,119050.0,119040.0,1.02678386]
[1755007912985,4.876e-05,119050.0,119040.0,1.17524586]
[1755007913594,4.876e-05,119050.0,119040.0,0.89054386]
[1755007913810,4.876e-05,119050.0,119040.0,1.02670386]
[1755007915485,4.876e-05,119050.0,119040.0,0.470184]
[1755007915834,4.876e-05,119050.0,119040.0,1.02670386]
[1755007916049,4.876e-05,119050.0,119040.0,0.470184]
[1755007916255,4.876e-05,119050.0,119040.0,1.02670386]
[1755007917942,4.876e-05,119050.0,119040.0,0.470184]
[1755007918151,4.876e-05,119050.0,119040.0,1.02670386]
[1755007918332,4.876e-05,119050.0,119040.0,0.470184]
[1755007918535,4.876e-05,119050.0,119040.0,1.02666386]
[1755007918760,0.00216876,119050.0,119040.0,0.330804]
[1755007918985,0.00216876,119050.0,119040.0,0.466924]
[1755007919231,0.1731354,119050.0,119040.0,0.38217075]
[1755007919434,0.00513876,119050.0,119040.0,0.38217075]